[Event "Israeli Women Championship 2022"]
[Site "Yosiah Arad"]
[Date "2022.12.06"]
[Round "2.5"]
[White "Levitan, Ronit"]
[Black "Kluchik, Julia"]
[Result "1-0"]
[ECO "B13"]
[WhiteElo "1989"]
[BlackElo "1887"]
[Annotator "TA"]
[PlyCount "97"]
[EventDate "2022.12.05"]
[EventType "tourn"]
[EventCountry "ISR"]
[SourceTitle "playchess.com"]
[Source "ChessBase"]
[SourceQuality "1"]
[TimeControl "40/5400+30:1800+30"]

{[%evp 11,97,27,29,0,8,0,12,0,8,0,0,12,8,11,13,0,0,-7,13,8,16,-3,7,7,21,15,30,27,22,22,25,24,23,22,66,55,71,56,183,185,183,179,210,211,216,203,233,230,222,226,264,262,235,251,302,250,259,250,248,270,281,252,279,258,304,308,296,295,388,394,380,389,405,390,461,454,651,647,635,635,619,579,510,477,635,630,568,543]} 1. e4 {[%emt 0:00:31]} c6 {[%emt 0:00:07]} 2. d4 {[%emt 0:00:07]} d5 {[%emt 0:00:06]} 3. exd5 {[%emt 0:00:12]} cxd5 {[%emt 0:00:05]} 4. Bd3 {[%emt 0:00:17]} Nc6 {[%emt 0:00:20]} 5. c3 {[%emt 0:00:25]} Qc7 {[%emt 0:00:38]} 6. h3 {[%emt 0:00:38]} g6 {[%emt 0:02:28]} 7. Nf3 {[%emt 0:00:44] B13: Caro-Kann: Exchange Variation and Panov-Botvinnik Attack.} Bf5 {[%emt 0:02:51]} 8. Be2 {[%emt 0:00:33] is now debated instead of 8.0-0.} Bg7 {[%emt 0:02:35]} 9. O-O {[%emt 0:00:12] The position is equal.} Nf6 {[%emt 0:01:14]} 10. Be3 {[%emt 0:00:30]} O-O {[%emt 0:00:33]} 11. Nbd2 {[%emt 0:00:35]} Rfe8 {[%emt 0:03:38] [#]} 12. Qc1 $146 {[%emt 0:03:37]} ({Predecessor:} 12. Re1 a6 13. Nf1 Ne4 14. N3d2 e5 15. dxe5 Nxe5 16. Bd4 Bh6 17. Nf3 Nc4 18. Bxc4 dxc4 {½-½ (54) Salgado Lopez,I (2605)-Dreev,A (2677) Moscow 2019}) 12... Rad8 {[%emt 0:02:23]} 13. Nb3 {[%emt 0:04:23]} Ne4 {[%emt 0:01:07]} 14. Bh6 {[%emt 0:03:39]} Bh8 {[%emt 0:05:15]} 15. Bf4 {[%emt 0:01:36]} (15. Re1 {with more complications.} a6 16. Bd3 e5 17. dxe5 Nxe5 18. Bf4) 15... Qc8 {[%emt 0:11:29]} 16. Nbd2 {[%emt 0:08:52]} a6 {[%emt 0:11:58]} 17. Re1 {[%emt 0:06:40]} b5 {[%emt 0:07:19]} 18. Nxe4 {[%emt 0:18:09]} Bxe4 {[%emt 0:04:00]} 19. Nd2 {[%emt 0:00:14][%cal Bf3d2,Bd2b3,Bb3d4][%mdl 32]} e5 {[%emt 0:05:05]} 20. dxe5 {[%emt 0:02:57]} Bxe5 {[%emt 0:06:17]} 21. Bxe5 {[%emt 0:15:17]} (21. Nb3 {simplifies} Bxf4 22. Qxf4 Qf5 23. Qxf5 Bxf5 24. Bf3) 21... Nxe5 {[%emt 0:00:24]} 22. Nb3 {[%emt 0:05:58]} (22. Bf1 {simplifies} Bf5 23. Nb3 Nc4 24. Rxe8+ Rxe8 25. a4) 22... Qf5 {[%emt 0:28:42]} (22... Bd3 {simplifies} 23. Nd4 Bxe2 24. Rxe2 Qd7) 23. Nd4 {[%emt 0:00:53]} Qf6 {[%emt 0:00:00]} 24. a4 {[%emt 0:04:51]} Nd3 {[%emt 0:02:32] Loses the game.} (24... Nc6 $14) 25. Bxd3 $18 {[%emt 0:00:07]} Bxd3 {[%emt 0:00:01]} 26. Qd2 {[%emt 0:00:50]} Be4 {[%emt 0:01:20]} 27. axb5 {[%emt 0:00:59]} axb5 {[%emt 0:00:01]} 28. Nxb5 {[%emt 0:00:45]} Rb8 {[%emt 0:00:01]} 29. Nd4 {[%emt 0:00:22]} g5 {[%emt 0:00:59]} 30. f3 {[%emt 0:02:31]} Bf5 {[%emt 0:00:35]} 31. Rxe8+ {[%emt 0:00:26]} Rxe8 {[%emt 0:00:01]} 32. Re1 {[%emt 0:00:08]} Rb8 {[%emt 0:00:48]} 33. b4 {[%emt 0:01:13]} Bd7 {[%emt 0:00:42]} 34. Qa2 {[%emt 0:00:57]} Qd6 {[%emt 0:00:14]} 35. Qe2 {[%emt 0:08:06]} Rc8 {[%emt 0:00:16]} 36. Qe5 {[%emt 0:03:36] Prevents h6.} Qxe5 {[%emt 0:01:12]} 37. Rxe5 {[%emt 0:00:01][%mdl 4096] Endgame KRB-KRN} Be6 {[%emt 0:00:01]} 38. Rxg5+ {[%emt 0:01:15]} Kf8 {[%emt 0:00:01]} 39. Ne2 {[%emt 0:02:43]} f6 {[%emt 0:00:02]} 40. Rh5 {[%emt 0:00:05]} Kg7 {[%emt 0:00:07]} 41. Rh4 {[%emt 0:31:41]} Bd7 {[%emt 0:31:51]} 42. Rd4 {[%emt 0:01:04]} ({Less strong is} 42. Nf4 Rxc3 43. Nxd5 Rd3 $18) 42... Bb5 {[%emt 0:00:24]} 43. Kf2 {[%emt 0:00:07] White is clearly winning.} Bxe2 {[%emt 0:00:00]} (43... Bc4 $142 44. Nf4 Kf7) 44. Kxe2 {[%emt 0:00:00]} Rxc3 {[%emt 0:00:00]} 45. Rxd5 {[%emt 0:00:00] KR-KR} Rb3 {[%emt 0:00:00]} 46. b5 {[%emt 0:00:00]} Kg6 {[%emt 0:00:00]} 47. Kf2 {[%emt 0:00:00]} h6 {[%emt 0:00:00]} 48. g4 {[%emt 0:00:00]} Kf7 {[%emt 0:00:00]} 49. Kg3 {[%emt 0:00:00] Weighted Error Value: White=0.04 (flawless) /Black=0.28 (precise)} 1-0

[Event "Israeli Women Championship 2022"]
[Site "Yosiah Arad"]
[Date "2022.12.07"]
[Round "3.1"]
[White "Efroimski, Marsel"]
[Black "Levitan, Ronit"]
[Result "1-0"]
[ECO "C68"]
[WhiteElo "2470"]
[BlackElo "1989"]
[Annotator "TA"]
[PlyCount "105"]
[EventDate "2022.12.05"]
[EventType "tourn"]
[EventCountry "ISR"]
[SourceTitle "playchess.com"]
[Source "ChessBase"]
[SourceQuality "1"]
[TimeControl "40/5400+30:1800+30"]

{[%evp 15,105,49,38,41,66,45,77,74,73,75,66,70,69,75,72,66,91,81,52,41,138,137,152,117,114,118,116,121,124,132,163,156,154,152,199,192,165,133,159,122,125,125,120,125,116,123,127,118,117,110,117,108,108,108,110,109,132,114,117,117,165,162,165,164,203,190,253,251,240,215,239,237,246,239,244,226,343,288,318,309,336,338,472,269,602,592,950,870,2066,959,2013,1922]} 1. e4 {[%emt 0:00:01]} e5 {[%emt 0:00:20]} 2. Nf3 {[%emt 0:00:03]} Nc6 {[%emt 0:00:17]} 3. Bb5 {[%emt 0:00:05]} a6 {[%emt 0:00:09]} 4. Bxc6 {[%emt 0:00:04]} dxc6 {[%emt 0:00:08]} 5. O-O {[%emt 0:00:06]} Qd6 {[%emt 0:00:20]} 6. Na3 {[%emt 0:00:07]} b5 {[%emt 0:03:38]} 7. c3 {[%emt 0:00:10]} c5 {[%emt 0:00:50]} 8. Nc2 {[%emt 0:00:05]} Bb7 {[%emt 0:14:55]} 9. Re1 {[%emt 0:00:08] C68: Ruy Lopez: Exchange Variation, sidelines.} f6 {[%emt 0:00:36]} 10. a4 {[%emt 0:01:21]} Ne7 {[%emt 0:02:36]} 11. axb5 {[%emt 0:06:34] White is better.} axb5 {[%emt 0:00:08]} 12. Rxa8+ {[%emt 0:00:02]} Bxa8 {[%emt 0:00:09]} 13. d4 {[%emt 0:00:09]} cxd4 {[%emt 0:03:59]} 14. cxd4 {[%emt 0:00:11] Qe2 is the strong threat.} Ng6 {[%emt 0:00:19] [#]} 15. Qd3 $146 {[%emt 0:06:09]} ({Predecessor:} 15. Bd2 Qd8 16. Qe2 Bc6 17. h4 Bd6 18. h5 Ne7 19. dxe5 fxe5 20. Bc3 O-O 21. Nxe5 {1-0 (27) Kayumov,S (2288)-Abbasi,R Teheran 2001}) 15... Qd7 {[%emt 0:13:42] [#]} 16. Qb3 $1 {[%emt 0:01:28]} Bd6 {[%emt 0:04:10]} 17. Bd2 {[%emt 0:01:15]} (17. Na3 {feels hotter.} Ke7 18. h3 Re8 19. Bd2) 17... Qf7 {[%emt 0:28:48] Inhibits h4.} (17... Bb7 $14) 18. Qxb5+ $16 {[%emt 0:03:13]} c6 {[%emt 0:00:31]} 19. Qd3 {[%emt 0:03:33]} O-O {[%emt 0:00:54]} 20. dxe5 {[%emt 0:02:28]} Bxe5 {[%emt 0:00:16]} 21. Nxe5 {[%emt 0:00:36]} Nxe5 {[%emt 0:00:23]} 22. Qc3 {[%emt 0:01:26]} Rd8 {[%emt 0:04:09]} 23. Bf4 {[%emt 0:02:25]} Ng6 {[%emt 0:00:51]} 24. Bg3 {[%emt 0:00:51]} Qd7 {[%emt 0:00:46]} (24... Re8 $16 25. h3 h5) 25. h4 $18 {[%emt 0:07:43]} Qd3 {[%emt 0:07:24]} 26. Qc5 {[%emt 0:07:30]} Nf8 {[%emt 0:01:48]} 27. Na3 {[%emt 0:07:48][%cal Bc2a3,Ba3c4,Bc4d6,Bd6f5][%mdl 32]} Ne6 {[%emt 0:02:49]} 28. Qe7 {[%emt 0:02:47]} Qd7 {[%emt 0:02:03]} 29. Qxd7 {[%emt 0:01:07] White has more active pieces.} Rxd7 {[%emt 0:00:06]} 30. Nc4 {[%emt 0:00:19]} Rd4 {[%emt 0:00:24]} 31. Nd6 {[%emt 0:01:44] Black must now prevent Ra1.} c5 {[%emt 0:01:37]} 32. f3 {[%emt 0:03:16]} Bc6 {[%emt 0:02:43]} 33. Nf5 {[%emt 0:03:58]} Rd7 {[%emt 0:00:22] Against Ne7+} 34. Nd6 {[%emt 0:05:53]} Nd4 {[%emt 0:01:07]} 35. Kh2 {[%emt 0:01:38]} Kf8 {[%emt 0:01:33]} 36. Nc4 {[%emt 0:05:51]} Bb5 {[%emt 0:01:36]} 37. Nb6 {[%emt 0:00:20]} Rb7 {[%emt 0:01:08]} (37... Rd8 $16 38. Bc7 Nc2) 38. Bd6+ {[%emt 0:00:14]} Kf7 {[%emt 0:00:04]} 39. Bxc5 {[%emt 0:00:06]} Ne6 {[%emt 0:00:20]} 40. Be3 {[%emt 0:01:42]} Rc7 {[%emt 0:01:10]} (40... Nf4 $142 41. Rd1 Nd3) 41. Ra1 {[%emt 0:37:44]} Bd3 {[%emt 0:05:10]} 42. Rd1 {[%emt 0:00:00]} Bc2 {[%emt 0:02:14]} 43. Rd5 {[%emt 0:00:00]} g6 {[%emt 0:01:19]} 44. b4 {[%emt 0:00:00][%cal Bb2b4,Bb4b5,Bb5b6][%mdl 32]} f5 {[%emt 0:01:30]} 45. e5 {[%emt 0:00:00]} h5 {[%emt 0:03:56]} (45... f4 $142) 46. Rd6 {[%emt 0:00:00]} Bb3 {[%emt 0:03:14]} 47. b5 {[%emt 0:00:00]} Rc3 {[%emt 0:00:28]} 48. Bg1 {[%emt 0:00:00]} Nf4 {[%emt 0:01:41]} 49. Rd2 {[%emt 0:00:00]} (49. Nd7 $142 {Hoping for b6.} Bd5 50. Nf6) 49... Ke6 $2 {[%emt 0:07:01]} (49... Rd3 50. Rb2 Ke6) 50. Nd7 {[%emt 0:00:00] And now b6 would win. White is clearly winning.} Bc4 {[%emt 0:06:45]} 51. b6 {[%emt 0:00:00]} Bd5 {[%emt 0:01:56] [#]} 52. Nc5+ {[%emt 0:00:00]} (52. Rxd5 $142 $1 Nxd5 (52... Kxd5 53. b7) 53. b7 Kxd7 54. b8=Q (54. b8=B $2 {loses.} Rc2 $19)) 52... Ke7 {[%emt 0:00:09] [#]} 53. Rxd5 $1 {[%emt 0:00:00] Weighted Error Value: White=0.13 (very precise) /Black=0.37} 1-0

[Event "Israeli Women Championship 2022"]
[Site "Yosiah Arad"]
[Date "2022.12.07"]
[Round "3.2"]
[White "Shvayger, Yuliya"]
[Black "Orian, Noga"]
[Result "1-0"]
[ECO "B90"]
[WhiteElo "2350"]
[BlackElo "1947"]
[Annotator "TA"]
[PlyCount "67"]
[EventDate "2022.12.05"]
[EventType "tourn"]
[EventCountry "ISR"]
[SourceTitle "playchess.com"]
[Source "ChessBase"]
[SourceQuality "1"]
[TimeControl "40/5400+30:1800+30"]

{[%evp 15,67,14,19,7,13,0,14,0,3,18,7,-16,0,0,0,0,52,31,41,27,97,95,125,62,55,40,40,9,13,0,186,128,322,314,297,298,307,338,320,204,566,531,912,831,756,566,1402,1378,1323,1295,2530,2253,29996,29997]} 1. e4 {[%emt 0:01:20]} c5 {[%emt 0:03:17]} 2. Nf3 {[%emt 0:00:08]} d6 {[%emt 0:00:11]} 3. d4 {[%emt 0:00:03]} cxd4 {[%emt 0:00:04]} 4. Nxd4 {[%emt 0:00:06]} Nf6 {[%emt 0:00:04]} 5. Nc3 {[%emt 0:00:06]} a6 {[%emt 0:00:03]} 6. Bd3 {[%emt 0:00:05]} e5 {[%emt 0:00:09]} 7. Nde2 {[%emt 0:00:10]} Be7 {[%emt 0:00:07]} 8. O-O {[%emt 0:01:00]} O-O {[%emt 0:00:33]} 9. Ng3 {[%emt 0:00:15] B90: Sicilian Najdorf: Unusual White 6th moves, 6 Be3 Ng4 and 6 Be3 e5.} Be6 {[%emt 0:00:11]} 10. Nd5 {[%emt 0:01:14]} Bxd5 {[%emt 0:00:06]} 11. exd5 {[%emt 0:00:05] The position is equal.} g6 {[%emt 0:00:04]} 12. c4 {[%emt 0:01:04]} Nbd7 {[%emt 0:00:52]} 13. f4 {[%emt 0:01:31] [#]} b5 $146 {[%emt 0:10:20]} ({Predecessor:} 13... exf4 14. Bxf4 h5 15. Qc2 Kg7 16. h3 Nc5 17. Rae1 Ng8 18. b4 Nxd3 19. Qxd3 Rc8 {0-1 (39) Chen,R (1783)-Pragnya,H (1505) Mamaia 2022}) 14. Kh1 {[%emt 0:03:47]} bxc4 {[%emt 0:01:28]} 15. Bxc4 {[%emt 0:00:02]} Nb6 {[%emt 0:00:46] Inhibits f5.} (15... exf4 $11 16. Bxf4 Ne5) 16. Bb3 $14 {[%emt 0:00:12]} exf4 {[%emt 0:06:26]} 17. Bxf4 {[%emt 0:00:28]} Rc8 {[%emt 0:01:39]} (17... Nfd7 $11) 18. Bh6 $16 {[%emt 0:03:13]} Re8 {[%emt 0:03:09]} 19. Qf3 {[%emt 0:00:03] White is more active.} (19. Qd4 $16) 19... Kh8 $14 {[%emt 0:04:14]} 20. Be3 {[%emt 1:25:38]} Nbd7 $1 {[%emt 0:05:12]} 21. Bd4 $36 {[%emt 0:00:00][%mdl 2048] White is more active.} Ne5 {[%emt 0:01:08]} 22. Qf4 {[%emt 0:00:00]} Qc7 $2 {[%emt 1:01:27]} (22... Nfd7 $1 $11) 23. Rae1 {[%emt 0:00:00]} (23. Rac1 $18 Qd7 24. Rxc8 Rxc8 25. Bxe5 dxe5 26. Qxe5) 23... Bd8 {[%emt 0:00:00] This costs Black the game.} (23... Nfd7 $16) 24. Ba4 $18 {[%emt 0:00:00]} Nxd5 {[%emt 0:00:00]} 25. Qd2 {[%emt 0:00:00]} (25. Qxf7 Qxf7 26. Rxf7 Re7 27. Rxe7 Bxe7 $16) 25... Qa5 {[%emt 0:00:00]} 26. Qd1 {[%emt 0:00:00]} ({Less strong is} 26. Qxa5 Bxa5 27. Bxe8 Bxe1 $16) 26... Re7 {[%emt 0:00:00]} 27. Bb3 {[%emt 0:00:00] [#] aiming for Qf3.} Nb4 $2 {[%emt 0:00:00]} (27... Rd7 $2 28. Bxe5+ dxe5 29. Rxe5 $18) (27... f5 {is tougher.} 28. Bxe5+ Rxe5) 28. Ne4 {[%emt 0:00:00]} ({Not} 28. Rxf7 Rxf7 29. Bxf7 Nc2 $16) 28... Bc7 {[%emt 0:00:00]} 29. Bc3 {[%emt 0:00:00] A strong pair of Bishops.} Qb6 {[%emt 0:00:00]} 30. Qd2 {[%emt 0:00:00] Strongly threatening Qg5.} Nbc6 {[%emt 0:00:00]} 31. Nf6 {[%emt 0:00:00] [#] White wants to mate with Qh6.} Kg7 {[%emt 0:00:00] Inhibits Qh6+.} 32. Nd5 {[%emt 0:00:00][%csl LRb6,LRe7]} Qc5 {[%emt 0:00:00]} 33. Nxe7 {[%emt 0:00:00]} Nxe7 {[%emt 0:00:00]} 34. Rxf7+ {[%emt 0:00:00] Weighted Error Value: White=0.31/Black=0.76} 1-0

[Event "Israeli Women Championship 2022"]
[Site "Yosiah Arad"]
[Date "2022.12.07"]
[Round "3.3"]
[White "Kochavi, Dana"]
[Black "Brusilovski, Lena"]
[Result "1-0"]
[ECO "B34"]
[WhiteElo "1928"]
[BlackElo "1800"]
[Annotator "TA"]
[PlyCount "113"]
[EventDate "2022.12.05"]
[EventType "tourn"]
[EventCountry "ISR"]
[SourceTitle "playchess.com"]
[Source "ChessBase"]
[SourceQuality "1"]
[TimeControl "40/5400+30:1800+30"]

{[%evp 16,113,20,12,55,7,23,22,35,31,47,21,24,14,47,40,57,52,61,61,71,43,83,58,90,90,108,107,116,91,204,214,197,143,117,64,61,60,68,0,0,0,0,0,0,0,0,0,-14,-10,0,0,21,0,0,-22,-6,-18,44,62,63,50,149,164,177,191,166,163,243,186,762,324,330,257,1137,436,799,479,441,270,241,0,541,402,360,0,1000,957,877,734,1020,826,29972,29972,29989,29990,29992,29991,29991,29992]} 1. e4 {[%emt 0:00:01]} c5 {[%emt 0:03:50]} 2. Nf3 {[%emt 0:00:05]} d6 {[%emt 0:01:30]} 3. d4 {[%emt 0:00:23]} cxd4 {[%emt 0:01:10]} 4. Nxd4 {[%emt 1:32:01]} Nf6 {[%emt 0:02:05]} 5. Nc3 {[%emt 0:00:00]} g6 {[%emt 0:02:27]} 6. h3 {[%emt 0:00:00]} Nc6 {[%emt 0:00:37]} 7. g3 {[%emt 0:00:00]} Bg7 {[%emt 0:00:52]} 8. Bg2 {[%emt 0:00:00]} O-O {[%emt 0:03:31]} 9. Be3 {[%emt 0:00:00]} Ne5 {[%emt 0:02:17] B34: Sicilian: Accelerated Dragon with 5 Nc3: sidelines.} 10. O-O {[%emt 0:00:00]} (10. Qe2 $14) 10... Nc4 {[%emt 0:00:38]} 11. Bc1 {[%emt 0:00:00]} Bd7 {[%emt 0:00:46] The position is equal.} 12. b3 {[%emt 0:00:00]} Ne5 {[%emt 0:01:20] [#]} 13. Nce2 $146 {[%emt 0:00:00]} ({Predecessor:} 13. Bb2 Rc8 14. Nd5 e6 15. Nxf6+ Bxf6 16. c4 a6 17. Rc1 Bg7 18. Qd2 Qe7 19. Ba3 {1-0 (67) Mamedov,R (2650)-Andriasian,Z (2594) Minsk 2015}) 13... Qc8 {[%emt 0:01:57]} 14. Kh2 {[%emt 0:00:00]} Nc6 {[%emt 0:01:49]} 15. c4 {[%emt 0:00:00]} a6 {[%emt 0:01:39][%cal Ob7b5]} 16. Be3 {[%emt 0:00:00]} Rd8 {[%emt 0:05:25]} 17. Rc1 {[%emt 0:00:00]} Qc7 {[%emt 0:02:11]} 18. Nc3 {[%emt 0:00:00]} e6 {[%emt 0:03:38] Inhibits Nd5.} 19. Qd2 {[%emt 0:00:00]} Rac8 {[%emt 0:02:32]} 20. Nde2 {[%emt 0:00:00] White is more active.} Ne7 {[%emt 0:00:43]} 21. Rfd1 {[%emt 0:00:00]} Bc6 {[%emt 0:02:11]} 22. Nd4 {[%emt 0:00:00]} b6 {[%emt 0:04:37] [#]} (22... Be8 $16 {might work better.}) 23. Nxc6 $1 $18 {[%emt 0:00:00]} Nxc6 {[%emt 0:00:20] [#]} 24. f4 {[%emt 0:00:00]} (24. Nd5 $1 $18 {[%mdl 512]} Qb8 25. Nxb6) 24... Qb8 {[%emt 0:00:41]} 25. Qf2 {[%emt 0:00:00]} (25. Na4 $16) 25... Nd7 $14 {[%emt 0:00:37]} 26. Na4 {[%emt 0:00:00][%cal Ra4b6]} Nc5 {[%emt 0:00:54]} 27. Nxc5 {[%emt 0:00:00]} (27. Kg1 $14) 27... bxc5 $11 {[%emt 0:01:35]} 28. f5 {[%emt 0:00:00]} Be5 {[%emt 0:00:44]} 29. Rf1 {[%emt 0:00:00]} Rd7 {[%emt 0:01:37]} 30. h4 {[%emt 0:00:00]} Nd4 {[%emt 0:01:31]} 31. Bh3 {[%emt 0:00:00]} Re8 {[%emt 0:01:34]} 32. Rce1 {[%emt 0:00:00]} Qd8 {[%emt 0:02:20]} 33. Bg5 {[%emt 0:00:00]} Qc7 {[%emt 0:02:39]} 34. h5 {[%emt 0:00:00]} gxh5 {[%emt 0:03:00]} 35. Kg2 {[%emt 0:00:00]} f6 {[%emt 0:02:26]} 36. Bxf6 {[%emt 0:00:00][%mdl 64]} exf5 {[%emt 0:01:21]} (36... Bxf6 37. fxe6 Rg7 38. Qxf6 $16) (36... Rf8 $1 $11 37. Bxe5 dxe5) 37. Bxf5 $14 {[%emt 0:00:00]} Rf7 {[%emt 0:01:30]} 38. Bxe5 {[%emt 0:00:00]} Nxf5 {[%emt 0:00:39]} (38... Rxe5 $14 39. Bxh7+ Kg7) 39. exf5 $16 {[%emt 0:00:00]} Rxe5 {[%emt 0:01:11]} 40. Rxe5 {[%emt 0:00:00]} dxe5 $14 {[%emt 0:00:08][%mdl 4096] Endgame KQR-KQR} 41. Qf3 {[%emt 0:27:21]} Qa5 {[%emt 0:32:13]} (41... Qb7 $142) 42. Rf2 {[%emt 0:00:21]} Qe1 $2 {[%emt 0:01:50]} (42... Qb6 43. Qxh5 Qc6+ 44. Kg1 h6) 43. Re2 {[%emt 0:01:13]} (43. Qxh5 Qe4+ 44. Kh2 Qd4 $18) (43. f6 $142) 43... Qb1 {[%emt 0:00:51]} 44. Rxe5 {[%emt 0:01:26] White wants to mate with Re8+.} Qxa2+ $2 {[%emt 0:01:27]} (44... Qb2+ 45. Re2 Qf6 46. Qxh5 Re7 47. Qg4+ Kf7) 45. Kh3 {[%emt 0:00:35]} (45. Re2 $142 Qa1 46. Re8+ Rf8 47. Qd5+ Kg7 48. Rxf8 Qb2+ 49. Kh3 Kxf8 50. Qd6+ Ke8 51. Qe6+ Kd8 52. f6 (52. Qxa6 Qg7 $18)) 45... Qd2 {[%emt 0:01:05]} (45... Qa1 $142 46. Rxc5 Qe1) 46. Rxc5 {[%emt 0:01:39] Strongly threatening Rc8+.} Qg5 {[%emt 0:00:44]} 47. Rc8+ {[%emt 0:00:18]} Kg7 {[%emt 0:00:10]} 48. Rc5 {[%emt 0:00:38]} (48. Ra8 $18) 48... Qe7 $2 {[%emt 0:00:28][%mdl 8192]} (48... Kg8 $1 $11 {and Black is okay.} 49. b4 Rf8) 49. Rc6 {[%emt 0:01:42]} Qd7 {[%emt 0:00:28] Prevents ?nota?.} 50. Rc5 {[%emt 0:00:10]} ({Less strong is} 50. g4 hxg4+ 51. Qxg4+ Kf8 52. Rxa6 Qb7 $14) ({Only move:} 50. Rxa6 $18 {aiming for Qc3+.} Rxf5 51. Qc6 Qxc6 52. Rxc6) 50... Rf6 $2 {[%emt 0:00:27][%mdl 8192]} (50... Qe7 $11 51. Qxh5 Rf8) 51. Qf4 $18 {[%emt 0:03:09] Intending Rc7 and mate.} (51. Qxh5 $2 {loses.} Rh6 $19) 51... Kg8 {[%emt 0:03:02]} 52. Rd5 {[%emt 0:00:53]} Qe7 {[%emt 0:01:05]} 53. c5 {[%emt 0:02:42][%cal Bc4c5,Bc5c6,Bc6c7][%mdl 32] Threatens to win with Qc4.} Rf7 {[%emt 0:02:59]} 54. c6 {[%emt 0:00:51] White mates.} Qf6 {[%emt 0:01:11]} 55. c7 {[%emt 0:00:25]} Qc6 {[%emt 0:00:50]} 56. Rd8+ {[%emt 0:00:19]} Rf8 {[%emt 0:00:08]} 57. Qc4+ {[%emt 0:00:07] Weighted Error Value: White=0.61/Black=0.51} (57. c8=R $2 Qh1#) 1-0

[Event "Israeli Women Championship 2022"]
[Site "Yosiah Arad"]
[Date "2022.12.07"]
[Round "3.4"]
[White "Kluchik, Julia"]
[Black "Ovechkin, Lilia"]
[Result "1/2-1/2"]
[ECO "B06"]
[WhiteElo "1887"]
[BlackElo "1680"]
[Annotator "NA RC COMBH"]
[PlyCount "110"]
[EventDate "2022.12.05"]
[EventType "tourn"]
[EventCountry "ISR"]
[SourceTitle "playchess.com"]
[Source "ChessBase"]
[SourceQuality "1"]
[TimeControl "40/5400+30:1800+30"]

1. e4 {[%emt 0:00:04]} g6 {[%emt 0:01:14]} 2. d4 {[%emt 0:00:28]} Bg7 {[%emt 0:00:11]} 3. Nc3 {[%emt 0:02:41]} d6 {[%emt 0:00:28]} 4. Be3 {[%emt 0:00:14]} a6 {[%emt 0:00:41]} 5. Qd2 {[%emt 0:00:26]} b5 {[%emt 0:10:03]} 6. Bd3 {[%emt 0:01:56]} Bb7 {[%emt 0:03:01]} 7. Nge2 {[%emt 0:01:15]} Nd7 {[%emt 0:00:31]} 8. a4 {[%emt 0:04:48]} c6 {[%emt 0:05:21]} 9. O-O {[%emt 0:02:37]} b4 {[%emt 0:07:18]} 10. Nd1 {[%emt 0:02:12]} c5 {[%emt 0:03:17]} 11. c3 {[%emt 0:09:02]} cxd4 {[%emt 0:10:12]} 12. cxd4 {[%emt 0:01:45]} a5 {[%emt 0:00:43]} 13. f4 {[%emt 0:13:10]} Ngf6 {[%emt 0:00:41]} 14. Nf2 {[%emt 0:00:23]} O-O {[%emt 0:05:33]} 15. Rac1 {[%emt 0:02:17]} Rc8 {[%emt 0:05:26]} 16. Ng3 {[%emt 0:04:32]} Rxc1 {[%emt 0:01:27]} 17. Rxc1 {[%emt 0:09:50]} Qa8 {[%emt 0:04:32]} 18. Rc7 {[%emt 0:08:24]} Rc8 {[%emt 0:04:39]} 19. Qc2 {[%emt 0:00:47]} Qb8 {[%emt 0:00:20]} 20. Rxc8+ {[%emt 0:00:36]} Qxc8 {[%emt 0:00:48]} 21. Qxc8+ {[%emt 0:07:54]} Bxc8 {[%emt 0:00:02]} 22. Nf1 {[%emt 0:00:23]} Nb6 {[%emt 0:02:24]} 23. b3 {[%emt 0:00:50]} d5 {[%emt 0:00:39]} 24. e5 {[%emt 0:05:51]} Ng4 {[%emt 0:10:08]} 25. Bd2 {[%emt 0:03:22]} Nxf2 {[%emt 0:06:03]} 26. Kxf2 {[%emt 0:00:02]} Kf8 {[%emt 0:03:23]} 27. Ne3 {[%emt 0:02:21]} f5 {[%emt 0:01:44]} 28. h3 {[%emt 0:01:17]} h5 {[%emt 0:00:08]} 29. g4 {[%emt 0:02:35]} hxg4 {[%emt 0:00:59]} 30. hxg4 {[%emt 0:00:56]} e6 {[%emt 0:00:39]} 31. Kg3 {[%emt 0:07:06]} Bd7 {[%emt 0:01:00]} 32. Be1 {[%emt 0:00:15]} Be8 {[%emt 0:03:03]} 33. Kf3 {[%emt 0:00:16]} Bc6 {[%emt 0:03:01]} 34. Bh4 {[%emt 0:00:21]} Ke8 {[%emt 0:01:21]} 35. Ng2 {[%emt 0:00:52]} Bf8 {[%emt 0:00:35]} 36. Ne1 {[%emt 0:01:14]} Kd7 {[%emt 0:02:08]} 37. Be2 {[%emt 0:02:46]} Be7 {[%emt 0:02:24]} 38. Bxe7 {[%emt 0:02:16]} Kxe7 {[%emt 0:00:02]} 39. Nd3 {[%emt 0:00:02]} Nd7 {[%emt 0:01:09]} 40. Ke3 {[%emt 0:00:13]} Kf7 {[%emt 0:00:59]} 41. gxf5 {[%emt 0:31:10]} gxf5 {[%emt 0:30:13]} 42. Bh5+ {[%emt 0:00:00]} Ke7 {[%emt 0:00:00]} 43. Nc5 {[%emt 0:00:00]} Nb8 {[%emt 0:00:00]} 44. Be2 {[%emt 0:00:00]} Nd7 {[%emt 0:00:00]} 45. Na6 {[%emt 0:00:00]} Nb6 {[%emt 0:00:00]} 46. Kf2 {[%emt 0:00:00]} Bb7 {[%emt 0:00:00]} 47. Nc5 {[%emt 0:00:00]} Bc6 {[%emt 0:00:00]} 48. Ba6 {[%emt 0:00:00]} Nd7 {[%emt 0:00:00]} 49. Ke3 {[%emt 0:00:00]} Nxc5 {[%emt 0:00:00]} 50. dxc5 {[%emt 0:00:00]} Kd7 {[%emt 0:00:00]} 51. Kd4 {[%emt 0:00:00]} Kc7 {[%emt 0:00:00]} 52. Bd3 {[%emt 0:00:00]} Kd7 {[%emt 0:00:00]} 53. Ke3 {[%emt 0:00:00]} Ke7 {[%emt 0:00:00]} 54. Be2 {[%emt 0:00:00]} Kd7 {[%emt 0:00:00]} 55. Kd2 {[%emt 0:00:00]} Ke7 {[%emt 0:09:30]} 1/2-1/2